bitfinex-derivatives/quotes_SOLF0:USTF0_20250904
["timestamp","ask_amount","ask_price","bid_price","bid_amount"]
[1757010608607,7.71,203.36,203.29,0.03229439]
[1757010609208,0.03103202,203.35,203.3,7.97]
[1757010609415,0.03103202,203.35,203.3,1.95109714]
[1757010609614,7.74103202,203.35,203.31,7.97]
[1757010609810,0.03103202,203.35,203.3,1.95109714]
[1757010610011,0.03103202,203.35,203.31,7.97]
[1757010610609,1.95109714,203.34,203.29,0.03229439]
[1757010610806,7.71,203.31,203.29,0.03229439]
[1757010611006,1.95109714,203.3,203.29,0.03229439]
[1757010611411,1.95109714,203.31,203.29,0.03229439]
[1757010611913,7.71,203.3,203.29,0.03229439]
[1757010612515,1.95109714,203.3,203.29,0.03229439]
[1757010612914,10.16109714,203.3,203.29,0.03229439]
[1757010613118,10.16109714,203.3,203.19,1.95109714]
[1757010613317,1.95109714,203.26,203.19,1.95109714]
[1757010613511,1.95109714,203.26,203.18,7.97]
[1757010613719,7.71,203.23,203.16,136.3636027]
[1757010614415,0.03211468,203.22,203.16,136.3636027]
[1757010615214,0.03211468,203.22,203.16,2.1436027]
[1757010615912,0.03211468,203.22,203.18,1.95109714]
[1757010616114,0.03211468,203.22,203.2,1.95109714]
[1757010616313,68.9183,203.09,203.0,6.30768007]
[1757010616516,1.95109714,203.03,202.9,68.9819]
[1757010616721,4.01545302,203.02,202.91,1.89602971]
[1757010616916,68.9181,203.09,202.92,1.95109714]
[1757010616917,0.03627942,202.99,202.92,1.95109714]
[1757010617421,0.03627942,202.99,202.93,138.02]
[1757010617811,3.84,203.03,202.93,138.02]
[1757010618019,0.03258992,202.98,202.93,138.02]
[1757010618216,0.03258992,202.98,202.81,69.012]
[1757010618421,0.03258992,202.98,202.92,7.53]
[1757010618618,7.75209293,202.97,202.86,7.53]
[1757010618822,3.87,202.93,202.74,7.53]
[1757010619125,4.89513416,202.81,202.69,7.53]
[1757010619318,3.87,202.8,202.69,7.53]
[1757010619522,5.39513416,202.8,202.6,69.082]
[1757010619722,0.67,202.71,202.6,7.53]
[1757010619919,0.67,202.71,202.56,33.38]
[1757010619920,4.89513416,202.68,202.52,7.53]
[1757010620121,0.67,202.59,202.45,7.53]
[1757010620722,0.70532761,202.54,202.4,12.42513416]
[1757010620925,0.70532761,202.54,202.4,7.53]
[1757010621228,4.89513416,202.61,202.47,7.53]
[1757010621425,0.7,202.68,202.5,7.53]
[1757010621630,5.59513416,202.68,202.53,7.53]
[1757010621831,0.7,202.66,202.53,7.53]
[1757010622132,317.1,202.81,202.56,7.53]
[1757010622133,4.89513416,202.71,202.56,7.53]
[1757010622331,0.7,202.73,202.56,7.53]
[1757010622332,0.7,202.73,202.58,4.89513416]
[1757010622533,0.7,202.71,202.5,7.53]
[1757010622739,0.7,202.71,202.61,0.03153423]
[1757010623722,0.7,202.78,202.62,4.89513416]
[1757010623930,0.03154871,202.68,202.66,12.42513416]
[1757010624128,0.03154871,202.68,202.66,7.53]
[1757010624427,0.03154871,202.68,202.65,12.45859005]
[1757010624629,0.03154871,202.68,202.65,7.56345589]
[1757010624829,0.03154871,202.68,202.66,7.53]
[1757010625230,0.03154871,202.68,202.65,0.03345589]
[1757010625533,0.03154871,202.68,202.66,4.89513416]
[1757010625833,1.55876097,202.78,202.66,4.89513416]
[1757010625834,0.7,202.78,202.67,7.53]
[1757010626236,0.7,202.78,202.59,4.89513416]
[1757010626424,0.7,202.78,202.51,69.1209]
[1757010626425,0.85877156,202.77,202.65,4.89513416]
[1757010626727,0.7,202.8,202.66,7.53]
[1757010626933,0.7,202.8,202.69,12.42513416]
[1757010627137,0.7,202.88,202.73,4.89513416]
[1757010627528,0.7,202.84,202.69,7.53]
[1757010627732,4.89513416,202.81,202.63,7.53]
[1757010628035,0.67,202.76,202.6,4.89513416]
[1757010628231,0.67,202.76,202.64,4.89513416]
[1757010628430,0.67,202.76,202.65,7.53]
[1757010628940,0.67,202.82,202.68,4.93063301]
[1757010629232,0.67,202.79,202.65,7.53]
[1757010629733,0.67,202.79,202.73,0.03316526]
[1757010630131,0.64,202.78,202.6,7.53]
[1757010630432,0.64,202.74,202.6,7.53]
[1757010631132,0.64,202.74,202.61,69.0872]
[1757010631334,0.03341762,202.69,202.63,69.0803]
[1757010631536,0.03341762,202.69,202.64,7.53]
[1757010631735,0.03341762,202.69,202.65,73.96833416]
[1757010632127,318.18,202.81,202.68,7.53]
[1757010632340,0.67,202.88,202.72,7.53]
[1757010632639,0.67,202.89,202.72,7.53]
[1757010632831,0.67,202.84,202.72,7.53]
[1757010633235,0.67,202.86,202.76,0.03324313]
[1757010633438,4.89513416,202.8,202.76,0.03324313]
[1757010633636,0.67,202.79,202.67,7.53]
[1757010633938,0.67,202.84,202.76,0.03169116]
[1757010634140,4.89513416,202.82,202.67,7.53]
[1757010634439,0.67,202.85,202.78,0.03771561]
[1757010634641,141.08,202.86,202.67,7.53]
[1757010634835,0.67,202.85,202.67,7.53]
[1757010635038,69.0127,202.83,202.63,7.53]
[1757010635333,0.64,202.74,202.57,7.53]
[1757010635536,4.89513416,202.66,202.57,7.53]
[1757010636134,0.03362596,202.64,202.57,7.53]
[1757010636936,4.89513416,202.62,202.48,7.53]
[1757010637136,4.89513416,202.58,202.48,7.53]
[1757010637537,0.03532376,202.55,202.48,7.53]
[1757010637841,0.03532376,202.55,202.39,7.53]
[1757010637842,4.89513416,202.52,202.39,7.53]
[1757010638048,0.64,202.51,202.39,7.53]
[1757010638432,0.0347093,202.47,202.39,7.53]
[1757010638937,0.0347093,202.47,202.42,69.1454]
[1757010639141,0.67,202.61,202.44,7.53]
[1757010639443,4.89513416,202.65,202.52,7.53]
[1757010640437,0.67,202.66,202.52,7.53]
[1757010640634,0.67,202.66,202.53,4.443]
[1757010640839,0.67,202.66,202.52,7.53]
[1757010641041,4.89513416,202.63,202.52,7.53]
[1757010641440,0.67,202.66,202.52,7.53]
[1757010641640,4.89513416,202.64,202.52,7.53]
[1757010642538,4.89513416,202.59,202.52,7.53]
[1757010642843,4.89513416,202.59,202.42,7.53]
[1757010643042,0.67,202.59,202.43,4.4452]
[1757010643345,4.89513416,202.56,202.43,4.4452]
[1757010643541,0.67,202.59,202.45,4.4447]
[1757010643742,4.89513416,202.58,202.45,4.4447]
[1757010644045,4.89513416,202.58,202.5,0.03192665]
[1757010644448,0.03225256,202.54,202.51,7.53]
[1757010644943,0.03225256,202.54,202.5,0.03192665]
[1757010645537,0.03225256,202.54,202.51,7.53]
[1757010645848,0.03225256,202.54,202.5,0.03192665]
[1757010646142,0.03225256,202.54,202.51,4.443]
[1757010646339,0.03225256,202.54,202.51,7.53]
[1757010646543,4.89513416,202.66,202.53,7.53]
[1757010646742,4.89513416,202.66,202.54,4.4423]
[1757010647047,4.89513416,202.66,202.51,74.00873416]
[1757010647048,4.89513416,202.67,202.55,7.53]
[1757010647645,0.7,202.69,202.59,0.03365718]
[1757010648039,4.89513416,202.67,202.59,0.03365718]
[1757010648241,4.89513416,202.63,202.59,0.03365718]
[1757010648444,0.73,202.62,202.59,0.03365718]
[1757010648643,0.73,202.62,202.5,7.88]
[1757010648844,0.73,202.62,202.58,0.03296286]
[1757010649240,0.69,202.58,202.42,7.88]
[1757010649445,4.89513416,202.56,202.42,7.88]
[1757010649845,0.69,202.58,202.42,7.88]
[1757010650047,5.58513416,202.58,202.42,7.88]
[1757010650243,5.58513416,202.58,202.46,4.4441]
[1757010650445,5.58513416,202.58,202.48,0.03451133]
[1757010650739,4.89513416,202.5,202.48,0.03451133]
[1757010650938,0.69,202.5,202.48,0.03451133]
[1757010651549,4.89513416,202.55,202.48,0.03451133]
[1757010651945,5.58513416,202.56,202.48,0.03451133]
[1757010653146,317.92,202.58,202.49,7.88]
[1757010653451,317.92,202.58,202.5,4.4432]
[1757010654150,0.69,202.61,202.52,4.4428]
[1757010654754,0.69,202.61,202.54,0.03340489]
[1757010656250,0.69,202.66,202.55,4.4421]
[1757010656451,322.87513416,202.7,202.56,69.0969]
[1757010656647,317.98,202.7,202.61,4.4408]
[1757010656853,317.98,202.7,202.61,4.47374966]
[1757010658251,138.94,202.74,202.63,76.9526]
[1757010658553,0.69,202.76,202.64,69.0705]
[1757010658748,0.69,202.76,202.67,4.4395]
[1757010658954,4.89513416,202.78,202.66,7.88]
[1757010659555,9.33233416,202.78,202.66,12.3196]
[1757010660051,4.89513416,202.78,202.66,12.3196]
[1757010660255,0.69,202.81,202.69,7.88]
[1757010660449,3.6756681,202.8,202.72,69.0417]
[1757010660653,0.69,202.86,202.72,69.0417]
[1757010660654,0.69,202.86,202.73,7.88]
[1757010660960,0.69,202.86,202.74,0.03267897]
[1757010661250,3.66994199,202.85,202.74,0.03267897]
[1757010661457,0.69,202.86,202.74,0.03267897]
[1757010662150,3.66927571,202.85,202.74,0.03267897]
[1757010662357,3.66927571,202.84,202.74,0.03267897]
[1757010662557,0.69,202.83,202.74,0.03267897]
[1757010662758,3.66927571,202.82,202.74,0.03267897]
[1757010663459,138.4,202.81,202.6,7.88]
[1757010663657,4.89513416,202.72,202.6,7.88]
[1757010663957,3.66927571,202.71,202.6,7.88]
[1757010664155,3.66927571,202.7,202.6,7.88]
[1757010664351,3.68116419,202.69,202.6,7.88]
[1757010664548,4.89513416,202.73,202.6,7.88]
[1757010664549,3.68116419,202.68,202.6,7.88]
[1757010664753,3.68116419,202.67,202.6,7.88]
[1757010664954,5.44496723,202.91,202.6,7.88]
[1757010665157,4.89513416,202.78,202.62,7.88]
[1757010665357,4.89513416,202.74,202.62,7.88]
[1757010665666,3.68148025,202.73,202.62,7.88]
[1757010665964,3.68148025,202.72,202.62,7.88]
[1757010666164,0.66,202.76,202.62,7.88]
[1757010666855,0.66,202.77,202.62,7.88]
[1757010667057,0.66,202.72,202.62,7.88]
[1757010667259,5.55513416,202.77,202.62,7.88]
[1757010668362,0.69526884,202.72,202.62,7.88]
[1757010668565,4.89513416,202.69,202.55,7.88]
[1757010669168,0.0372827,202.64,202.56,4.4418]
[1757010669368,0.0372827,202.64,202.55,7.88]
[1757010669771,0.6972827,202.64,202.48,7.88]
[1757010670174,0.66,202.64,202.48,77.0044]
[1757010670377,0.03567046,202.58,202.5,7.88]
[1757010670672,0.03567046,202.58,202.53,69.1071]
[1757010670873,0.03567046,202.58,202.52,7.88]
[1757010671375,0.66,202.69,202.56,7.88]
[1757010672170,0.7,202.74,202.6,7.88]
[1757010672774,0.7,202.74,202.65,0.03280393]
[1757010673478,4.4378,202.75,202.65,0.03280393]
[1757010673672,0.7,202.79,202.65,0.03280393]
[1757010673977,4.4376,202.76,202.64,7.88]
[1757010674277,69.7201,202.79,202.7,0.03557749]
[1757010674278,69.0347,202.75,202.7,0.03557749]
[1757010674476,69.0409,202.73,202.7,0.03557749]
[1757010674670,0.7,202.72,202.7,0.03557749]
[1757010674871,5.1387,202.72,202.7,0.03557749]
[1757010675073,0.7,202.71,202.7,0.03557749]
[1757010675778,4.4387,202.72,202.7,0.03557749]
[1757010675976,69.054,202.69,202.59,7.88]
[1757010676275,0.7,202.71,202.59,7.88]
[1757010676477,0.7,202.71,202.6,4.441]
[1757010677175,0.03574066,202.68,202.59,7.88]
[1757010678674,0.03574066,202.68,202.53,7.79]
[1757010678675,0.65,202.67,202.53,7.79]
[1757010678880,0.65,202.63,202.46,7.79]
[1757010679278,0.0317783,202.57,202.46,7.79]
[1757010679677,0.0317783,202.57,202.49,7.79]
[1757010680781,0.0317783,202.57,202.5,4.4431]
[1757010681377,0.0317783,202.57,202.49,69.1215]
[1757010681577,0.0317783,202.57,202.51,69.115]
[1757010681879,0.0317783,202.57,202.47,146.47]
[1757010682180,0.0317783,202.57,202.47,7.79]
[1757010684678,0.0317783,202.57,202.48,4.4437]
[1757010684983,0.0317783,202.57,202.47,7.79]
[1757010686085,4.4737783,202.57,202.47,7.79]
[1757010686284,0.0317783,202.57,202.47,7.79]
[1757010687186,0.0317783,202.57,202.43,7.79]
[1757010687584,69.092,202.58,202.43,7.79]
[1757010687887,4.4423,202.55,202.45,4.4444]
[1757010688288,0.03193344,202.52,202.45,4.4444]
[1757010688688,0.03193344,202.52,202.44,69.1386]
[1757010688990,0.03193344,202.52,202.45,7.79]
[1757010689484,0.03193344,202.52,202.5,7.79]
[1757010689685,0.03193344,202.52,202.49,4.4434]
[1757010689887,0.03193344,202.52,202.44,7.79]
[1757010691989,4.47503344,202.52,202.44,7.79]
[1757010692193,0.03193344,202.52,202.44,7.79]
[1757010693485,0.03193344,202.52,202.45,4.4444]
[1757010695297,0.03193344,202.52,202.44,7.79]
[1757010696394,0.03193344,202.52,202.44,12.2345]
[1757010697097,0.03193344,202.52,202.44,7.79]
[1757010697298,0.03193344,202.52,202.36,8.84536443]
[1757010697299,69.1157,202.51,202.38,7.79]
[1757010697996,0.03697033,202.47,202.38,7.79]
[1757010699296,0.03697033,202.47,202.41,7.79]
[1757010700096,0.65,202.57,202.41,7.79]
[1757010700293,0.65,202.57,202.42,0.03724982]
[1757010700493,0.65,202.57,202.43,7.79]
[1757010700796,0.65,202.57,202.43,12.2347]
[1757010700996,0.65,202.57,202.43,7.79]
[1757010701397,0.65,202.57,202.48,0.03795656]
[1757010702405,136.84,202.62,202.48,0.03795656]
[1757010702406,0.68,202.54,202.48,0.03795656]
[1757010702696,0.68,202.54,202.4,7.79]
[1757010703097,7.98558506,202.55,202.49,0.03662374]
[1757010703898,0.68,202.54,202.49,0.03662374]
[1757010704290,7.98558506,202.55,202.49,0.03662374]
[1757010704695,0.68,202.54,202.49,0.03662374]
[1757010704896,0.68,202.53,202.49,0.03662374]
[1757010705092,0.68,202.5,202.49,0.03662374]
[1757010705899,1.18,202.5,202.49,0.03662374]
[1757010707195,69.1436,202.43,202.33,7.79]
[1757010707399,0.65,202.45,202.33,7.79]
[1757010707595,4.4443,202.46,202.36,4.4462]
[1757010707800,137.12,202.5,202.37,8.04]
[1757010708105,69.7796,202.5,202.37,8.04]
[1757010708299,0.03551283,202.46,202.37,8.04]
[1757010710597,69.16841283,202.46,202.37,8.04]
[1757010711601,0.03551283,202.46,202.37,8.04]
[1757010712105,69.16901283,202.46,202.37,8.04]
[1757010712802,69.1374,202.45,202.28,0.86013001]
[1757010712995,69.1374,202.45,202.29,8.04]
[1757010713506,0.03639158,202.39,202.33,8.04]
[1757010714006,0.03639158,202.39,202.36,8.04]
[1757010714203,0.03639158,202.39,202.35,4.4466]
[1757010714600,0.03639158,202.39,202.36,8.04]
[1757010714801,0.03639158,202.39,202.35,4.4466]
[1757010715002,0.03639158,202.39,202.36,8.04]
[1757010715197,0.66,202.47,202.35,8.54]
[1757010715407,0.69,202.5,202.35,8.07609074]
[1757010715803,0.69,202.5,202.35,8.04]
[1757010715999,4.4444,202.45,202.36,4.4463]
[1757010716203,4.4444,202.45,202.35,8.04]
[1757010716709,4.4444,202.45,202.38,0.03561992]
[1757010717005,69.8204,202.47,202.38,0.03561992]
[1757010717505,4.4444,202.45,202.38,0.03561992]
[1757010718010,4.4448,202.44,202.38,0.03561992]
[1757010718401,0.69,202.47,202.39,8.04]
[1757010718604,4.4445,202.45,202.39,8.04]
[1757010718799,0.69,202.47,202.39,8.04]
[1757010719207,0.69,202.47,202.38,0.03561992]
[1757010720407,0.69,202.45,202.38,0.03561992]
[1757010721807,135.44,202.44,202.38,0.03561992]
[1757010722809,0.69,202.45,202.38,0.03561992]
[1757010723005,106.02,202.44,202.38,0.03561992]
[1757010723412,0.69,202.45,202.38,0.03561992]
[1757010724610,0.69,202.49,202.38,8.07561992]
[1757010725110,0.69,202.49,202.38,12.4858]
[1757010725316,318.2,202.52,202.41,8.07775969]
[1757010726412,0.69,202.58,202.44,8.04]
[1757010726614,0.69,202.58,202.46,8.04]
[1757010726805,0.69,202.58,202.48,8.04]
[1757010727005,0.69,202.58,202.5,0.0333883]
[1757010727516,4.4418,202.57,202.5,0.0333883]
[1757010728109,135.52,202.61,202.51,8.04]
[1757010728316,0.69,202.63,202.53,8.04]
[1757010728615,318.93,202.67,202.55,8.04]
[1757010729019,0.69,202.67,202.57,8.04]
[1757010729213,0.69,202.72,202.57,8.04]
[1757010729415,80.23,202.72,202.57,4.4416]
[1757010729608,0.69,202.72,202.58,9.90835109]
[1757010729808,0.69,202.72,202.62,0.03137535]
[1757010730118,8.67558506,202.72,202.62,0.03137535]
[1757010730311,7.98558506,202.68,202.62,0.03137535]
[1757010730715,8.48558506,202.68,202.62,0.03137535]
[1757010730918,0.69,202.67,202.62,0.03137535]
[1757010731216,143.56558506,202.66,202.62,0.03137535]
[1757010731419,0.5,202.68,202.62,0.03137535]
[1757010731420,0.69,202.65,202.62,0.03137535]
[1757010731915,0.69,202.67,202.62,0.03137535]
[1757010732220,0.69,202.63,202.53,8.04]
[1757010733216,4.91284559,202.66,202.53,8.04]
[1757010734715,0.69,202.67,202.53,8.04]
[1757010735214,4.91284559,202.66,202.53,8.04]
[1757010735413,0.69,202.67,202.53,8.04]
[1757010735811,69.0754,202.63,202.53,8.04]
[1757010736018,69.0683,202.65,202.53,8.04]
[1757010736316,0.69,202.67,202.55,4.4422]
[1757010736522,69.7383,202.71,202.54,8.04]
[1757010736822,4.4398,202.67,202.57,4.91284559]
[1757010737120,0.69,202.71,202.58,8.04]
[1757010737517,4.4391,202.7,202.58,8.04]
[1757010737724,69.0513,202.7,202.58,8.04]
[1757010738319,4.4399,202.66,202.58,8.04]
[1757010738622,69.0613,202.67,202.58,8.04]
[1757010738821,4.4403,202.64,202.58,8.04]
[1757010739222,4.4407,202.62,202.58,8.04]
[1757010739623,69.0661,202.66,202.58,8.04]
[1757010739824,69.7392,202.68,202.58,8.04]
[1757010740416,4.4403,202.64,202.58,8.04]
[1757010740815,69.7392,202.68,202.58,8.04]
[1757010740816,0.68,202.68,202.58,8.04]
[1757010741918,0.68,202.73,202.58,8.04]
[1757010742120,0.68,202.73,202.61,7.46]
[1757010742521,4.4394,202.68,202.61,7.46]
[1757010743723,4.4388,202.71,202.61,7.46]
[1757010743925,0.68,202.73,202.61,7.46]
[1757010744326,69.05,202.71,202.61,7.46]
[1757010744523,69.7345,202.69,202.56,4.91284559]
[1757010744718,69.0582,202.68,202.56,12.37284559]
[1757010745319,69.0615,202.67,202.56,7.46]
[1757010745526,0.68,202.66,202.56,7.46]
[1757010747031,0.68,202.7,202.56,7.46]
[1757010747528,4.4394,202.68,202.59,7.46]
[1757010748118,0.68,202.7,202.59,7.46]
[1757010748629,69.7185,202.74,202.59,7.46]
[1757010748822,4.4387,202.71,202.6,7.46]
[1757010749821,4.4387,202.71,202.6,11.901]
[1757010750330,4.4391,202.7,202.6,11.901]
[1757010750530,4.4391,202.7,202.61,7.46]
[1757010750927,4.4394,202.69,202.61,7.46]
[1757010751123,69.0455,202.72,202.61,7.46]
[1757010751327,0.68,202.73,202.61,7.46]
[1757010751732,4.4393,202.69,202.61,7.46]
[1757010752325,4.4388,202.71,202.61,7.46]
[1757010752525,0.68,202.73,202.61,7.46]
[1757010753024,4.4391,202.7,202.61,7.46]
[1757010753532,0.68,202.78,202.64,7.46]
[1757010754038,0.68,202.78,202.59,69.0879]
[1757010754039,4.4392,202.69,202.6,7.46]
[1757010754236,69.0441,202.72,202.6,7.46]
[1757010754926,69.718,202.74,202.6,7.46]
[1757010755133,69.0409,202.73,202.6,7.46]
[1757010755327,0.68,202.71,202.6,7.46]
[1757010755726,4.4396,202.68,202.6,7.46]
[1757010756033,0.68,202.71,202.6,7.46]
[1757010756331,4.439,202.7,202.6,11.901]
[1757010756535,4.439,202.7,202.61,7.46]
[1757010756925,4.439,202.7,202.62,4.91284559]
[1757010757135,4.4386,202.72,202.62,4.91284559]
[1757010757635,0.68,202.75,202.66,7.46]
[1757010758525,5.118,202.75,202.66,7.46]
[1757010761030,318.9,202.79,202.66,11.8996]
[1757010761227,387.9206,202.79,202.66,7.46]
[1757010761632,4.47325931,202.75,202.66,7.46]
[1757010761938,0.03525931,202.75,202.66,7.46]
[1757010762437,0.03525931,202.75,202.69,7.46]
[1757010763637,0.03525931,202.75,202.69,12.37284559]
[1757010763838,0.03525931,202.75,202.69,4.91284559]
[1757010766435,0.03525931,202.75,202.7,7.46]
[1757010766631,0.03525931,202.75,202.69,4.91284559]
[1757010766833,0.03525931,202.75,202.69,9.35194559]
[1757010767241,0.03525931,202.75,202.7,7.46]
[1757010767635,0.03525931,202.75,202.7,8.11]
[1757010767831,0.03525931,202.75,202.69,8.11]
[1757010769041,4.47325931,202.75,202.69,8.11]
[1757010769241,0.03525931,202.75,202.69,8.11]
[1757010770336,0.03525931,202.75,202.69,12.549]
[1757010771843,0.03525931,202.75,202.7,12.5488]
[1757010772037,0.03525931,202.75,202.64,132.34]
[1757010772038,0.03525931,202.75,202.69,13.02284559]
[1757010772439,0.03525931,202.75,202.7,8.11]
[1757010773042,0.68,202.85,202.74,8.11]
[1757010773549,4.4361,202.83,202.75,4.4377]
[1757010774245,0.71,202.83,202.74,8.11]
[1757010774441,0.71,202.83,202.77,0.03230626]
[1757010775347,4.4368,202.8,202.77,0.03230626]
[1757010775550,69.0074,202.83,202.77,0.03230626]
[1757010775739,0.71,202.78,202.77,0.03230626]
[1757010776345,4.4371,202.79,202.77,0.03230626]
[1757010777645,0.71,202.82,202.77,0.03230626]
[1757010777646,4.4365,202.82,202.77,0.03230626]
[1757010777853,0.71,202.81,202.77,0.03230626]
[1757010780050,5.1465,202.82,202.77,8.14230626]
[1757010780955,5.1467,202.81,202.77,0.03230626]
[1757010781454,0.71,202.86,202.77,0.03230626]
[1757010782147,0.71,202.86,202.78,8.11]
[1757010782349,0.71,202.9,202.78,8.11]
[1757010782553,0.71,202.89,202.78,8.11]
[1757010782854,0.71,202.85,202.72,76.86284559]
[1757010783044,68.9903,202.88,202.81,0.0361213]
[1757010783351,68.9903,202.88,202.72,68.75284559]
[1757010783352,0.71,202.87,202.82,0.03716097]
[1757010783545,0.71,202.88,202.82,0.03716097]
[1757010784243,4.4358,202.85,202.82,0.03716097]
[1757010785257,5.1461,202.84,202.82,0.03716097]
[1757010785449,0.71,202.83,202.82,0.03716097]
[1757010788150,0.71,202.91,202.82,0.03716097]
[1757010788656,4.4349,202.89,202.82,0.03716097]
[1757010788851,0.71,202.91,202.82,0.03716097]
[1757010789359,0.71,202.91,202.83,8.11]
[1757010790655,4.4342,202.92,202.83,8.11]
[1757010791053,0.03603321,202.9,202.83,8.11]
[1757010791254,0.03603321,202.9,202.86,8.11]
[1757010791457,0.03603321,202.9,202.85,9.34834559]
[1757010791654,0.03603321,202.9,202.85,4.91284559]
[1757010791856,0.03603321,202.9,202.86,8.11]
[1757010792156,0.03603321,202.9,202.85,9.34834559]
[1757010792657,0.03603321,202.9,202.84,0.03539266]
[1757010793759,0.03603321,202.9,202.84,8.14539266]
[1757010794256,0.03603321,202.9,202.86,8.11]
[1757010794662,0.03603321,202.9,202.85,4.4355]
[1757010794960,0.03603321,202.9,202.86,8.11]
[1757010795460,0.03603321,202.9,202.86,4.4353]
[1757010795662,0.03603321,202.9,202.87,8.11]
[1757010795857,0.03603321,202.9,202.86,4.4353]
[1757010796260,0.03603321,202.9,202.87,8.11]
[1757010796563,0.71,203.0,202.89,8.11]
[1757010797661,0.71,203.0,202.92,7.45281014]
[1757010798258,0.71,203.0,202.92,0.03281014]
[1757010798857,4.4331,202.97,202.92,0.03281014]
[1757010799062,0.71,202.97,202.92,7.45281014]
[1757010799764,4.4326,202.99,202.92,7.45281014]
[1757010799970,0.71,203.01,202.92,7.45281014]
[1757010802174,0.71,203.01,202.92,11.88671014]
[1757010802369,0.71,203.01,202.92,7.45281014]
[1757010802576,68.9489,203.0,202.92,0.03281014]
[1757010802771,0.71,202.99,202.92,0.03281014]
[1757010803975,5.1432,202.97,202.92,0.03281014]
[1757010805470,0.71,202.96,202.92,0.03281014]
[1757010806277,5.1426,203.0,202.92,0.03281014]
[1757010807385,27.24,203.04,202.92,0.03281014]
[1757010807386,5.1416,203.04,202.92,0.03281014]
[1757010807678,0.71,203.04,202.92,0.03281014]
[1757010807877,0.71,203.03,202.92,0.03281014]
[1757010808376,4.4322,203.01,202.92,0.03281014]
[1757010809180,4.4322,203.01,202.92,4.46691014]
[1757010809770,68.933,203.05,202.92,0.03281014]
[1757010809978,0.71,202.98,202.92,0.03281014]
[1757010810174,0.71,202.98,202.87,7.42]
[1757010810374,5.1428,202.98,202.93,0.03142016]
[1757010810673,69.6458,203.04,202.93,0.03142016]
[1757010811279,5.1424,203.0,202.93,0.03142016]
[1757010811682,0.71,203.0,202.93,0.03142016]
[1757010812078,0.71,203.0,202.93,7.45142016]
[1757010812781,0.71,203.05,202.93,7.45142016]
[1757010813078,5.1413,203.05,202.95,4.4335]
[1757010813379,5.1413,203.05,202.97,0.03178679]
[1757010813581,0.71,203.05,202.98,7.42]
[1757010814384,0.71,203.09,202.98,7.42]
[1757010815080,0.71,203.09,203.01,0.03230485]
[1757010818185,4.4315,203.04,203.01,0.03230485]
[1757010818681,0.71,203.09,203.01,0.03230485]
[1757010818884,4.431,203.07,203.01,0.03230485]
[1757010819084,0.71,203.09,203.01,0.03230485]
[1757010819286,69.6284,203.09,203.01,0.03230485]
[1757010819683,4.4312,203.06,203.01,7.45230485]
[1757010819985,0.71,203.09,203.01,7.45230485]
[1757010820385,1.56735403,203.13,203.01,7.45230485]
[1757010820584,0.71,203.13,203.01,7.45230485]
[1757010821184,4.4301,203.11,203.03,4.4316]
[1757010821391,4.4301,203.11,203.01,7.45230485]
[1757010821588,4.4301,203.11,203.01,7.42]
[1757010821886,0.71,203.13,203.04,7.4570756]
[1757010823091,0.71,203.13,203.04,11.8883756]
[1757010823286,0.71,203.13,203.04,7.4570756]
[1757010823590,0.71,203.13,203.04,11.8884756]